bitfinex-derivatives/quotes_ETHF0:USTF0_20250504
["timestamp","ask_amount","ask_price","bid_price","bid_amount"]
[1746400998973,3.04632818,1815.0,1814.8,2.69855]
[1746400999272,6.73432818,1815.0,1814.8,2.69855]
[1746400999574,2.77042,1814.9,1814.8,5.90635]
[1746400999872,1.6686,1814.9,1814.8,2.69855]
[1746401000067,5.3566,1814.9,1814.8,5.90635]
[1746401000367,6.45842,1814.9,1814.8,4.8045]
[1746401000567,1.10192,1814.8,1814.6,47.62535]
[1746401000764,1.10192,1814.8,1814.7,1.10194]
[1746401000765,2.82122,1814.8,1814.7,1.10194]
[1746401001270,1.10194,1814.7,1814.6,2.5156]
[1746401001571,3.09717818,1814.7,1814.5,1.10202]
[1746401001771,3.09717818,1814.7,1814.6,1.102]
[1746401002172,1.102,1814.6,1814.5,40.8]
[1746401002376,1.99523818,1814.6,1814.4,2.5663]
[1746401002568,3.09725818,1814.6,1814.5,1.10206]
[1746401003075,6.78525818,1814.6,1814.5,1.10206]
[1746401003374,6.78525818,1814.6,1814.5,4.30986]
[1746401003980,1.10206,1814.5,1814.4,43.3663]
[1746401004275,5.282,1814.5,1814.4,44.46839]
[1746401004475,5.282,1814.5,1814.4,47.67619]
[1746401004767,5.282,1814.5,1814.4,6.87619]
[1746401006079,3.688,1814.5,1814.4,6.87619]
[1746401007079,0.27593818,1814.7,1814.4,6.87619]
[1746401007080,0.27593818,1814.7,1814.6,1.102]
[1746401007279,0.27593818,1814.7,1814.5,2.77532]
[1746401007481,2.99181818,1814.7,1814.5,1.6733]
[1746401007772,2.99181818,1814.7,1814.6,4.3098]
[1746401007978,2.99181818,1814.7,1814.5,1.6733]
[1746401008176,1.102,1814.6,1814.5,2.77532]
[1746401008376,2.7159,1814.6,1814.5,2.77532]
[1746401008679,1.10206,1814.5,1814.4,5.16298]
[1746401008882,5.06589818,1814.7,1814.6,1.102]
[1746401009183,3.96393818,1814.7,1814.6,1.102]
[1746401010285,5.06587818,1814.7,1814.6,1.102]
[1746401010682,5.06592818,1814.7,1814.5,1.6644]
[1746401010881,5.06592818,1814.7,1814.6,1.102]
[1746401011177,5.06592818,1814.7,1814.5,1.6644]
[1746401011382,5.06592818,1814.7,1814.6,1.102]
[1746401011683,3.96393818,1814.7,1814.6,1.102]
[1746401012373,1.102,1814.6,1814.5,2.76642]
[1746401012785,0.27593818,1814.6,1814.4,4.0609]
[1746401013083,5.06599818,1814.6,1814.4,5.6467]
[1746401013277,3.96393818,1814.6,1814.4,5.6467]
[1746401013782,5.06596818,1814.6,1814.5,1.10206]
[1746401013983,1.10206,1814.5,1814.4,6.74878]
[1746401014180,4.79006,1814.5,1814.4,6.74878]
[1746401014579,5.06599818,1814.5,1814.4,3.2078]
[1746401014785,0.27593818,1814.2,1814.1,4.3101]
[1746401015084,0.27593818,1814.2,1814.1,46.8236]
[1746401015874,1.37817818,1814.2,1814.1,46.8236]
[1746401016077,5.06617818,1814.2,1814.1,45.7213]
[1746401016278,5.06617818,1814.2,1814.1,44.0078]
[1746401016780,5.06617818,1814.2,1814.1,45.1101]
[1746401017184,5.06617818,1814.2,1814.1,44.0078]
[1746401017584,1.1023,1814.1,1814.0,1.7233]
[1746401017781,5.06619818,1814.2,1814.0,1.7233]
[1746401017985,3.96393818,1814.2,1814.0,3.4368]
[1746401018488,3.688,1814.2,1814.1,1.1023]
[1746401018693,3.688,1814.2,1814.1,6.0026]
[1746401020182,1.10219,1814.3,1814.1,4.9003]
[1746401020483,1.10224,1814.3,1814.1,1.10225]
[1746401020692,1.10224,1814.2,1814.1,1.10225]
[1746401020891,1.10223,1814.3,1814.1,1.10225]
[1746401021187,1.10223,1814.3,1814.2,1.10224]
[1746401021383,3.96393818,1814.4,1814.2,1.10224]
[1746401021588,1.10218,1814.3,1814.2,1.10224]
[1746401021777,1.10218,1814.3,1814.1,1.10226]
[1746401021981,1.10224,1814.2,1814.1,4.31006]
[1746401022285,1.10224,1814.2,1814.1,3.2078]
[1746401022486,4.79021,1814.3,1814.2,1.10224]
[1746401022883,6.46741,1814.3,1814.2,1.10224]
[1746401024885,6.46743,1814.3,1814.1,3.2078]
[1746401025390,2.83764,1814.2,1814.1,4.31005]
[1746401025589,1.7354,1814.2,1814.1,4.31005]
[1746401025792,2.83764,1814.2,1814.1,4.31005]
[1746401026088,6.52564,1814.2,1814.1,4.31005]
[1746401026684,5.4234,1814.2,1814.1,4.31005]
[1746401026883,3.688,1814.2,1814.1,4.31005]
[1746401027086,1.10218,1814.3,1814.2,1.10224]
[1746401027391,1.88733818,1814.4,1814.1,3.2078]
[1746401027590,1.10224,1814.2,1814.1,4.31006]
[1746401028094,4.79024,1814.2,1814.1,4.31006]
[1746401028391,3.688,1814.2,1814.1,4.31006]
[1746401028688,4.79024,1814.2,1814.1,4.31006]
[1746401028893,5.06617818,1814.2,1814.1,4.31006]
[1746401029290,5.06617818,1814.2,1814.1,3.2078]
[1746401030184,6.67757818,1814.2,1814.1,4.3101]
[1746401030491,6.67757818,1814.2,1814.1,3.2078]
[1746401033388,0.27593818,1814.1,1814.0,1.10237]
[1746401033689,0.27593818,1814.1,1814.0,4.31017]
[1746401033891,1.86223818,1814.1,1813.9,43.56317]
[1746401034086,3.688,1814.2,1814.0,3.2078]
[1746401034282,5.50823,1815.2,1814.0,3.2078]
[1746401034283,9.4137832,1814.6,1814.1,1.6608]
[1746401034480,9.13784502,1814.6,1814.5,1.10206]
[1746401034687,9.13784502,1814.6,1814.5,4.30986]
[1746401034887,9.13784502,1814.6,1814.5,9.30986]
[1746401035391,7.97843502,1814.6,1814.5,9.30986]
[1746401035793,7.97843502,1814.6,1814.5,50.10986]
[1746401035996,3.66437521,1814.8,1814.7,1.10194]
[1746401036196,3.66437521,1814.8,1814.7,7.97474]
[1746401036694,3.66437521,1814.8,1814.7,8.83034]
[1746401036895,3.66437521,1814.8,1814.7,10.55954]
[1746401037595,3.66437521,1814.8,1814.7,7.35174]
[1746401037798,3.66437521,1814.8,1814.7,10.55954]
[1746401038391,4.31405981,1814.9,1814.7,10.55954]
[1746401038595,0.27593818,1815.1,1815.0,1.10176]
[1746401039194,3.96393818,1815.1,1815.0,1.10176]
[1746401039400,3.96393818,1815.1,1815.0,2.75126]
[1746401039888,3.96393818,1815.1,1815.0,1.6495]
[1746401040089,3.96393818,1815.1,1815.0,2.75126]
[1746401040293,5.65923818,1815.1,1815.0,2.75126]
[1746401041192,3.688,1815.1,1815.0,2.75126]
[1746401041494,3.688,1815.1,1815.0,3.55356]
[1746401042298,3.96393818,1815.1,1815.0,3.55356]
[1746401042496,5.06564818,1815.1,1814.9,4.30958]
[1746401042798,5.06564818,1815.1,1814.9,4.30957]
[1746401043099,3.96393818,1815.1,1815.0,1.10176]
[1746401043294,5.06563818,1815.1,1815.0,1.10176]
[1746401043495,5.06563818,1815.1,1814.9,4.30959]
[1746401043896,1.37769818,1815.0,1814.9,3.2078]
[1746401044099,5.06569818,1815.0,1814.9,3.2078]
[1746401044402,1.37779818,1814.9,1814.7,4.30974]
[1746401044894,2.24549818,1814.9,1814.7,4.30974]
[1746401045198,5.93349818,1814.9,1814.7,4.30974]
[1746401045397,4.83163818,1814.9,1814.7,4.30974]
[1746401045697,5.93349818,1814.9,1814.7,4.30974]
[1746401046298,5.93349818,1814.9,1814.8,1.10188]
[1746401046797,5.93349818,1814.9,1814.7,4.30971]
[1746401047898,1.10188,1814.8,1814.7,3.2078]
[1746401048291,4.78988,1814.8,1814.7,3.2078]
[1746401048490,3.688,1814.8,1814.7,4.30974]
[1746401048691,3.96393818,1814.8,1814.7,4.30974]
[1746401049298,5.06581818,1814.8,1814.7,4.30974]
[1746401049604,3.96393818,1814.8,1814.7,4.30974]
[1746401050898,3.688,1814.8,1814.7,4.30974]
[1746401052091,5.04205339,1815.1,1814.9,1.10177]
[1746401052291,5.04204339,1815.1,1815.0,1.10176]
[1746401052492,1.37766818,1815.1,1815.0,1.10176]
[1746401052995,0.27593818,1815.1,1815.0,1.10176]
[1746401053194,5.67343818,1815.1,1815.0,1.10176]
[1746401053897,5.67343818,1815.1,1815.0,2.74746]
[1746401054294,6.77513818,1815.1,1815.0,2.74746]
[1746401054597,5.67343818,1815.1,1815.0,2.74746]
[1746401055596,3.688,1815.1,1815.0,2.74746]
[1746401055798,5.06563818,1815.1,1815.0,2.74746]
[1746401056097,6.75243818,1815.1,1815.0,1.10176]
[1746401056287,5.65073818,1815.1,1815.0,1.10176]
[1746401057604,3.96393818,1815.1,1815.0,2.70806]
[1746401057803,3.688,1815.1,1815.0,2.70806]
[1746401058400,3.688,1815.1,1815.0,7.70806]
[1746401058597,3.688,1815.1,1815.0,11.37106]
[1746401060698,2.42969,1815.1,1815.0,17.26906]
[1746401060902,0.27593818,1815.4,1815.3,1.10158]
[1746401061102,3.96393818,1815.4,1815.3,4.30938]
[1746401061794,3.96393818,1815.4,1815.3,6.79998]
[1746401063206,3.688,1815.4,1815.3,6.79998]
[1746401064707,3.96393818,1815.4,1815.3,6.79998]
[1746401065399,3.688,1815.4,1815.3,10.46198]
[1746401065600,2.30355743,1815.4,1815.3,15.46198]
[1746401065795,1.08572743,1815.4,1815.3,21.35998]
[1746401066006,7.43e-06,1815.4,1815.3,21.35998]
[1746401066209,0.27593818,1815.8,1815.7,1.10133]
[1746401066410,0.27593818,1815.8,1815.7,4.30913]
[1746401066800,0.27593818,1815.8,1815.7,6.77333]
[1746401067111,3.96393818,1815.8,1815.7,6.77333]
[1746401067808,3.688,1815.8,1815.7,6.77333]
[1746401071010,3.96393818,1815.8,1815.7,6.77333]
[1746401071210,3.96393818,1815.8,1815.7,4.30913]
[1746401071410,5.67583818,1815.8,1815.7,4.30913]
[1746401071910,5.67583818,1815.8,1815.7,5.96263]
[1746401076613,6.77710818,1815.8,1815.7,4.30913]
[1746401076812,5.67583818,1815.8,1815.7,4.30913]
[1746401077017,6.77710818,1815.8,1815.7,4.30913]
[1746401077312,11.77710818,1815.8,1815.7,3.2078]
[1746401077507,2.75345,1815.7,1815.2,4.30939]
[1746401077708,1.10156,1815.4,1815.3,1.10158]
[1746401078111,4.78956,1815.4,1815.3,1.10158]
[1746401078703,0.27593818,1815.3,1815.2,4.3094]
[1746401078912,3.94271818,1815.3,1815.2,1.10164]
[1746401079117,12.30783818,1815.3,1815.0,4.30954]
[1746401079309,1.6892,1815.2,1815.1,1.1017]
[1746401079810,2.79084,1815.2,1815.1,1.1017]
[1746401080215,6.47884,1815.2,1815.1,1.1017]
[1746401081709,1.1017,1815.1,1815.0,3.2078]
[1746401081908,2.7909,1815.1,1815.0,3.2078]
[1746401082111,6.4789,1815.1,1815.0,3.2078]
[1746401083514,6.4789,1815.1,1815.0,4.30956]
[1746401084211,6.4789,1815.1,1815.0,3.2078]
[1746401085618,6.4789,1815.1,1815.0,4.30956]
[1746401086217,5.3772,1815.1,1815.0,4.30956]
[1746401086721,6.4789,1815.1,1815.0,4.30956]
[1746401087717,6.4789,1815.1,1815.0,3.2078]
[1746401088019,6.4789,1815.1,1815.0,4.30956]
[1746401089018,5.3772,1815.1,1815.0,4.30956]
[1746401089218,5.3772,1815.1,1815.0,6.04426]
[1746401089407,5.3772,1815.1,1815.0,6.87946]
[1746401089613,5.65313818,1815.1,1815.0,4.30956]
[1746401090609,5.65313818,1815.1,1815.0,6.04426]
[1746401092128,5.65313818,1815.1,1815.0,6.83346]
[1746401095316,5.3772,1815.1,1815.0,6.83346]
[1746401095615,3.688,1815.1,1815.0,6.83346]
[1746401098525,3.96393818,1815.1,1815.0,6.83346]
[1746401099527,3.96393818,1815.1,1815.0,4.30956]
[1746401099721,5.53613818,1815.1,1815.0,4.30956]
[1746401100231,5.53613818,1815.1,1815.0,1.10176]
[1746401102333,6.63783818,1815.1,1815.0,1.10176]
[1746401103932,5.53613818,1815.1,1815.0,1.10176]
[1746401104423,5.53613818,1815.1,1815.0,2.67576]
[1746401105125,6.63783818,1815.1,1815.0,2.67576]
[1746401105321,5.53613818,1815.1,1814.7,3.2078]
[1746401105627,1.10206,1814.5,1814.4,4.30988]
[1746401106228,4.79006,1814.5,1814.4,4.30988]
[1746401106631,3.688,1814.5,1814.4,4.30988]
[1746401107130,5.2556,1814.5,1814.4,4.30988]
[1746401108125,5.2556,1814.5,1814.4,5.87418]
[1746401110233,6.35766,1814.5,1814.4,2.66638]
[1746401110634,5.2556,1814.5,1814.4,2.66638]
[1746401113635,6.35766,1814.5,1814.4,2.66638]
[1746401113937,1.10212,1814.4,1814.3,1.89245]
[1746401114131,1.37811818,1814.3,1814.2,3.2078]
[1746401114325,2.75564,1814.2,1813.8,5.11216]
[1746401114522,1.37836818,1813.9,1813.8,3.2078]
[1746401115024,1.10249,1813.8,1813.7,1.10254]
[1746401115226,3.53809,1813.8,1813.7,1.10254]
[1746401115636,2.4356,1813.8,1813.7,1.10254]
[1746401116034,2.95934818,1814.0,1813.9,1.10243]
[1746401116235,2.95934818,1814.0,1813.9,4.79043]
[1746401116634,2.95934818,1814.0,1813.9,6.45363]
[1746401117038,2.95934818,1814.0,1813.9,5.3512]
[1746401117736,2.95934818,1814.0,1813.9,6.45363]
[1746401118233,2.95934818,1814.0,1813.9,5.3512]
[1746401119136,2.95934818,1814.0,1813.9,1.6632]
[1746401119635,1.37836818,1813.9,1813.8,3.688]
[1746401119835,3.01916818,1813.9,1813.8,3.688]
[1746401120235,1.10249,1813.8,1813.7,1.10251]
[1746401120430,2.74329,1813.8,1813.7,1.10251]
[1746401120631,1.6408,1813.8,1813.7,1.10251]
[1746401120831,1.37839818,1813.9,1813.8,1.10249]
[1746401121131,1.37839818,1813.9,1813.8,4.79049]
[1746401122237,1.37839818,1813.9,1813.8,1.10249]
[1746401126541,1.10249,1813.8,1813.7,2.82472]
[1746401126733,3.03272818,1813.8,1813.7,2.82472]
[1746401127238,3.03272818,1813.8,1813.7,3.688]
[1746401127443,8.03272818,1813.8,1813.7,3.688]
[1746401127631,8.81262818,1813.8,1813.7,3.688]
[1746401128241,1.10255,1813.7,1813.6,3.2078]
[1746401128441,3.67235,1813.7,1813.6,3.2078]
[1746401131844,3.94828818,1813.7,1813.6,3.2078]
[1746401133648,3.67235,1813.7,1813.6,4.31041]
[1746401133948,3.94828818,1813.7,1813.6,4.8599]
[1746401134448,3.94828818,1813.7,1813.6,1.6521]
[1746401134744,3.67235,1813.7,1813.6,1.6521]
[1746401134941,3.67235,1813.7,1813.6,2.75471]
[1746401135450,1.10255,1813.7,1813.6,2.75471]
[1746401136045,9.30773818,1814.0,1813.6,4.8599]
[1746401136250,3.90293818,1814.1,1814.0,1.10237]
[1746401136546,5.97313818,1814.2,1814.0,1.10237]
[1746401136748,2.71125,1814.1,1813.9,1.10239]
[1746401136948,2.71125,1814.1,1813.9,2.78129]
[1746401137144,1.6089,1814.1,1814.0,1.10237]
[1746401137349,1.6089,1814.1,1814.0,2.78127]
[1746401137549,2.71123,1814.1,1814.0,1.6789]
[1746401138453,2.71123,1814.1,1814.0,2.78127]
[1746401138852,2.71123,1814.1,1814.0,1.6789]
[1746401142459,2.71123,1814.1,1814.0,2.78127]
[1746401142665,2.71123,1814.1,1814.0,1.6789]
[1746401143363,3.00743464,1814.1,1814.0,1.6789]
[1746401144050,1.10243,1813.9,1813.8,0.7824]
[1746401144763,1.10243,1813.9,1813.8,1.88489]
[1746401145157,1.10243,1813.9,1813.8,5.57289]
[1746401145356,1.10243,1813.9,1813.8,7.28159]
[1746401150359,1.10243,1813.9,1813.8,6.1791]
[1746401150360,1.37836818,1813.9,1813.8,6.1791]
[1746401150557,1.67463609,1813.9,1813.8,4.4704]
[1746401150957,3.35653609,1813.9,1813.8,4.4704]
[1746401151163,3.35653609,1813.9,1813.8,0.7824]
[1746401152059,9.1806013,1813.9,1813.8,0.7824]
[1746401153860,9.18064041,1813.9,1813.8,0.7824]
[1746401154665,9.18064041,1813.9,1813.8,2.4986]
[1746401155567,9.18064247,1813.9,1813.8,2.4986]
[1746401157269,9.18061203,1813.9,1813.8,2.4986]
[1746401159162,9.18056339,1813.9,1813.8,2.4986]
[1746401160872,6.12029521,1813.9,1813.8,3.60109]
[1746401161167,1.10243,1813.9,1813.8,3.60106]
[1746401161369,3.66437521,1814.0,1813.9,1.10243]
[1746401161567,3.66437521,1814.0,1813.9,2.72993]
[1746401162064,1.10243,1813.9,1813.8,0.7824]
[1746401162266,7.31603832,1813.9,1813.8,0.7824]
[1746401162465,10.82016727,1813.9,1813.8,0.7824]
[1746401162670,7.61236727,1813.9,1813.8,0.7824]
[1746401163061,10.82016727,1813.9,1813.8,0.7824]
[1746401163460,0.27593818,1813.8,1813.5,7.99843]
[1746401163664,1.10261,1813.6,1813.5,8.12253]
[1746401164072,2.67281,1813.6,1813.5,8.12253]
[1746401165471,8.77274818,1813.6,1813.5,3.688]
[1746401165674,8.77274818,1813.6,1813.2,7.31554498]
[1746401165675,1.10291,1813.1,1813.0,7.31554498]
[1746401165876,1.3993576,1813.1,1813.0,7.31554498]
[1746401166270,3.0522576,1813.1,1813.0,7.31554498]
[1746401166477,3.05225374,1813.1,1813.0,7.31554498]
[1746401166668,3.03174818,1813.1,1813.0,7.31554498]
[1746401168074,3.32816734,1813.1,1813.0,7.31554498]
[1746401168274,3.03174818,1813.1,1813.0,7.31554498]
[1746401168474,3.32787582,1813.1,1813.0,7.31554498]
[1746401168675,3.32787338,1813.1,1813.0,7.31554498]
[1746401168871,6.53567338,1813.1,1813.0,7.31554498]
[1746401169074,6.23954818,1813.1,1813.0,7.31554498]
[1746401169674,1.10297,1813.0,1812.9,3.2983]
[1746401169874,2.80527,1813.0,1812.9,3.2983]
[1746401170172,3.08120818,1813.0,1812.9,3.2983]
[1746401174384,1.10322,1812.6,1812.5,7.93705]
[1746401174586,1.1032,1812.7,1812.6,2.5547]
[1746401174783,1.1032,1812.7,1812.6,3.65792]
[1746401175183,1.10314,1812.8,1812.6,3.65792]
[1746401175384,1.10314,1812.8,1812.7,2.5112]
[1746401176886,1.10314,1812.8,1812.7,3.61436]
[1746401177280,6.92702,1813.0,1812.8,1.10305]
[1746401177482,8.85744818,1813.0,1812.6,1.10321]
[1746401177686,1.1031,1812.8,1812.7,1.6228]
[1746401180687,1.1031,1812.8,1812.7,2.72596]
[1746401181288,1.1031,1812.8,1812.7,1.6228]
[1746401181487,1.1031,1812.8,1812.7,2.72596]
[1746401181690,1.1031,1812.8,1812.7,1.6228]
[1746401183290,1.1031,1812.8,1812.7,2.72596]
[1746401185798,1.1031,1812.8,1812.7,1.6228]
[1746401186295,1.1031,1812.8,1812.7,2.72596]
[1746401186598,1.1031,1812.8,1812.7,1.6228]
[1746401186990,1.10309,1812.9,1812.7,1.6228]
[1746401187185,1.1031,1812.8,1812.7,1.6228]
[1746401187389,1.1031,1812.8,1812.7,2.72592]
[1746401188092,1.1031,1812.8,1812.7,5.3108]
[1746401188301,1.1031,1812.8,1812.7,6.41396]
[1746401189200,1.1031,1812.8,1812.7,2.72596]
[1746401192302,1.1031,1812.8,1812.7,1.6228]
[1746401192897,1.10316,1812.7,1812.6,2.74017]
[1746401193093,1.37907818,1812.8,1812.7,1.10316]
[1746401193298,1.37907818,1812.8,1812.7,2.69696]
[1746401193900,1.37907818,1812.8,1812.7,1.5938]
[1746401195399,1.67610679,1812.8,1812.7,1.5938]
[1746401195806,2.48750679,1812.8,1812.7,1.5938]
[1746401196399,2.48748836,1812.8,1812.7,1.5938]
[1746401196791,2.48748836,1812.8,1812.6,2.74021]
[1746401196994,2.67676,1812.7,1812.6,1.637]
[1746401197299,2.67676,1812.7,1812.6,3.3676]
[1746401197602,2.67676,1812.7,1812.6,4.47082]
[1746401200298,1.10316,1812.7,1812.6,4.47082]
[1746401201603,3.10387818,1812.8,1812.7,1.10316]
[1746401201804,3.40102703,1812.8,1812.7,2.72346]
[1746401202297,1.10305,1812.9,1812.8,1.1031]
[1746401202500,1.40019954,1812.9,1812.8,2.7234]
[1746401204103,1.40019954,1812.9,1812.8,6.4114]
[1746401204596,1.67613772,1812.9,1812.8,5.3083]
[1746401204997,3.28173772,1812.9,1812.8,5.3083]
[1746401206104,3.28173772,1812.9,1812.8,1.6203]
[1746401207504,0.29714954,1812.9,1812.8,2.7234]
[1746401208099,0.29714954,1812.9,1812.8,6.4114]
[1746401208300,0.29751368,1812.9,1812.8,6.4114]
[1746401208499,1.40054368,1812.9,1812.8,6.4114]
[1746401210005,1.4004324,1812.9,1812.8,6.4114]
[1746401210506,1.82485538,1812.9,1812.8,6.4114]
[1746401211607,1.83017535,1812.9,1812.8,6.4114]
[1746401211806,5.49455056,1812.9,1812.8,5.3083]
[1746401212195,5.77048874,1812.9,1812.8,5.3083]
[1746401212403,7.45888874,1812.9,1812.8,5.3083]
[1746401212602,0.27593818,1812.8,1812.5,3.2078]
[1746401212802,1.37915818,1812.6,1812.5,3.2078]
[1746401213101,1.37927818,1812.4,1812.3,10.94154498]
[1746401213306,2.10709463,1812.4,1812.3,9.79604498]
[1746401213605,1.67841027,1812.4,1812.3,9.79604498]
[1746401213795,1.37927818,1812.4,1812.3,10.89944498]
[1746401213998,3.83472818,1812.5,1812.4,1.10334]
[1746401214195,10.41087818,1812.8,1812.4,1.6265]
[1746401214502,7.49890339,1812.9,1812.5,3.2078]
[1746401214807,0.30052381,1812.8,1812.7,1.10311]
[1746401215008,0.30052394,1812.8,1812.7,2.72961]
[1746401215306,1.40362394,1812.8,1812.7,5.3145]
[1746401215607,3.05552394,1812.8,1812.7,5.3145]
[1746401216208,3.05552394,1812.8,1812.7,1.6265]
[1746401216705,1.10316,1812.7,1812.6,0.8668]
[1746401216907,1.10322,1812.6,1812.5,1.91245]
[1746401217304,2.68972,1812.6,1812.5,1.91245]
[1746401217504,1.5865,1812.6,1812.5,3.62205]
[1746401217909,2.68972,1812.6,1812.5,3.62205]
[1746401218106,2.9900969,1812.6,1812.5,2.5188]
[1746401218308,3.7879969,1812.6,1812.5,1.7096]
[1746401218508,1.37921818,1812.5,1812.4,1.1033]
[1746401218810,1.5865,1812.5,1812.4,1.10334]
[1746401218998,1.5865,1812.5,1812.4,2.81294]
[1746401219198,1.07383818,1812.6,1812.5,1.10328]
[1746401219400,3.88755818,1812.6,1812.5,2.78338]
[1746401220106,2.78433818,1812.6,1812.5,2.78338]
[1746401220313,1.7105,1812.6,1812.5,2.78338]
[1746401220513,3.08965818,1812.6,1812.5,2.78338]
[1746401220703,1.37926818,1812.5,1812.4,1.10334]
[1746401220903,3.93606818,1812.5,1812.3,4.43926]
[1746401221103,3.93606818,1812.5,1812.4,1.10334]
[1746401221305,2.22556818,1812.5,1812.4,1.10334]
[1746401221610,2.22556818,1812.5,1812.3,4.43925]
[1746401221798,2.22556818,1812.5,1812.3,3.57415]
[1746401222199,1.37927818,1812.4,1812.3,2.4708]
[1746401222409,1.67939938,1812.4,1812.3,2.4708]
[1746401222913,1.10344,1812.3,1812.2,1.10346]
[1746401223110,0.27593818,1812.4,1812.2,3.63606]
[1746401223408,1.37931818,1812.4,1812.2,3.63606]
[1746401223610,1.37931818,1812.4,1812.3,1.721]
[1746401223809,1.67941444,1812.4,1812.3,1.721]
[1746401224109,1.37931818,1812.4,1812.3,1.721]
[1746401224319,1.37933818,1812.3,1812.2,0.8116]
[1746401224509,1.37933818,1812.3,1812.1,0.8534]
[1746401224510,1.10346,1812.2,1812.1,0.8534]
[1746401224904,1.10346,1812.2,1812.1,2.5744]
[1746401225711,1.10346,1812.2,1812.1,3.67792]
[1746401226013,1.10346,1812.2,1812.1,2.5744]
[1746401227408,1.1037,1811.8,1811.7,11.00668264]
[1746401227610,4.88719316,1811.8,1811.7,5.74247762]
[1746401227808,1.37969818,1811.7,1811.6,7.36784925]
[1746401228002,1.10383,1811.6,1811.5,2.31828228]
[1746401228209,8.57473505,1811.6,1811.5,2.31828228]
[1746401228410,1.37988818,1811.4,1811.3,11.5236489]
[1746401228602,8.21268818,1811.4,1811.3,10.3022089]
[1746401228807,13.51183336,1811.4,1811.3,10.3022089]
[1746401229008,13.51182841,1811.4,1811.3,10.3022089]
[1746401229217,8.57482841,1811.4,1811.3,10.3022089]
[1746401229915,8.57482841,1811.4,1811.3,12.0292089]
[1746401230215,3.50694023,1811.4,1811.3,12.0292089]
[1746401230416,4.61089023,1811.4,1811.3,12.8306089]
[1746401230715,4.61089023,1811.4,1811.3,12.0292089]
[1746401230909,3.50694023,1811.4,1811.3,12.0292089]
[1746401231105,8.99309999,1811.4,1811.3,1.727]
[1746401231810,7.88914999,1811.4,1811.3,1.727]
[1746401232008,8.99309999,1811.4,1811.3,1.727]
[1746401232209,3.03603818,1811.3,1810.4,3.65939748]
[1746401232412,1.10415,1811.1,1810.8,1.10428]
[1746401232613,3.48373818,1811.3,1810.9,1.7354]
[1746401232807,3.48373818,1811.3,1811.0,0.836]
[1746401233009,0.27593818,1811.2,1810.5,0.8014]
[1746401233210,1.10432,1810.8,1810.6,5.7792]
[1746401233409,0.27593818,1811.0,1810.7,1.7354]
[1746401233610,1.10427,1810.9,1810.7,1.7354]
[1746401233913,7.20409818,1811.1,1810.8,4.93829]
[1746401234113,0.27593818,1811.0,1810.6,0.836]
[1746401234315,1.10434,1810.8,1810.7,1.6842]
[1746401234513,1.1043,1810.9,1810.7,1.6842]
[1746401234718,1.10431,1810.8,1810.7,1.6842]
[1746401235017,1.10439,1810.7,1810.4,4.93853]
[1746401235214,3.48373818,1810.8,1810.5,1.6842]
[1746401235410,4.44673818,1810.8,1810.5,1.6842]
[1746401235610,1.10443,1810.7,1810.5,1.6842]
[1746401236913,1.38033818,1810.7,1810.5,1.6842]
[1746401237313,5.824,1810.9,1810.3,3.834]
[1746401237314,4.44673818,1810.6,1810.3,3.834]
[1746401237509,5.55122818,1810.6,1810.5,1.6205]
[1746401237718,3.48373818,1810.6,1810.5,1.6205]
[1746401238109,1.10439,1810.7,1810.5,1.6205]
[1746401238522,1.38037818,1810.6,1810.5,1.6205]
[1746401239113,1.38033818,1810.7,1810.5,1.6205]
[1746401239315,1.38037818,1810.6,1810.5,1.6205]
[1746401239717,1.10448,1810.6,1810.4,0.8059]
[1746401240015,1.1045,1810.5,1810.4,4.6409]
[1746401240520,1.1045,1810.5,1810.4,0.8059]
[1746401240716,1.38043818,1810.5,1810.4,0.8059]
[1746401240925,3.03383818,1810.5,1810.4,0.8059]
[1746401241109,9.0318,1810.6,1810.4,0.8059]
[1746401241317,5.824,1810.6,1810.4,0.8059]
[1746401241514,6.92844,1810.6,1810.4,0.8059]
[1746401241925,3.2078,1810.5,1810.4,0.8059]
[1746401242222,4.3123,1810.5,1810.4,0.8059]
[1746401242410,5.9657,1810.5,1810.4,0.8059]
[1746401242810,5.9657,1810.5,1810.4,2.4598]
[1746401244225,6.09993818,1810.6,1810.4,1.10456]
[1746401244226,5.824,1810.6,1810.4,1.10456]
[1746401244526,5.824,1810.6,1810.5,1.1045]
[1746401244725,5.824,1810.6,1810.3,7.0428]
[1746401244929,5.824,1810.6,1810.5,1.1045]
[1746401245129,6.92844,1810.6,1810.4,1.10451]
[1746401245328,8.66034,1810.6,1810.4,1.10451]
[1746401245726,1.1045,1810.5,1810.3,8.14738]
[1746401245921,7.5559,1810.6,1810.4,1.10453]
[1746401245922,2.83638,1810.6,1810.4,1.10453]
[1746401246716,2.83638,1810.6,1810.3,3.835]
[1746401246920,8.2322,1810.7,1810.3,7.0428]
[1746401247120,1.10444,1810.6,1810.5,1.10445]
[1746401247323,1.1045,1810.5,1810.4,0.8194]
[1746401247528,0.27593818,1810.5,1810.1,3.2078]
[1746401247821,1.10474,1810.1,1810.0,5.0]
[1746401248023,1.88683818,1810.4,1810.1,1.10469]
[1746401248233,1.6109,1810.4,1810.2,2.83774]
[1746401248427,1.38061818,1810.2,1810.0,5.0]
[1746401248621,1.10471,1810.2,1810.1,1.10472]
[1746401248821,1.10471,1810.2,1810.1,2.83782]
[1746401249127,1.38064818,1810.2,1810.1,1.7331]
[1746401249425,2.71561,1810.2,1810.1,2.83784]
[1746401249623,3.48373818,1810.3,1810.1,2.5244]
[1746401249825,1.10468,1810.2,1810.1,0.7913]
[1746401250027,1.10468,1810.2,1810.1,1.896]
[1746401250222,1.38067818,1810.1,1810.0,5.0]
[1746401250427,4.58847818,1810.1,1810.0,5.0]
[1746401251118,6.16617818,1810.1,1810.0,5.0]
[1746401251318,11.16617818,1810.1,1810.0,5.0]